bitfinex-derivatives/quotes_ETHF0:USTF0_20240925
["timestamp","ask_amount","ask_price","bid_price","bid_amount"]
[1727286302879,0.38832,2575.3,2575.1,0.38834]
[1727286303080,0.38832,2575.3,2574.9,6.2378]
[1727286303081,1.9238,2575.4,2575.3,0.38832]
[1727286303279,0.9708,2575.3,2574.9,3.2078]
[1727286303483,0.9708,2575.3,2574.3,9.709]
[1727286303484,3.03,2575.0,2574.3,3.2078]
[1727286303778,9.1043,2575.2,2574.1,0.38849]
[1727286303779,3.2078,2574.6,2574.1,0.38849]
[1727286303981,1.9216,2574.9,2574.2,3.03]
[1727286304179,1.9216,2574.9,2574.0,5.1613]
[1727286304180,1.9216,2574.9,2574.4,3.41845]
[1727286304480,1.9216,2574.9,2574.5,0.38844]
[1727286304776,2.89458,2575.4,2574.7,3.5962]
[1727286304777,0.38833,2575.3,2574.7,3.5962]
[1727286304975,2.45083,2575.3,2574.8,0.38839]
[1727286305373,2.0625,2575.3,2574.8,0.38839]
[1727286305579,2.0625,2575.3,2575.0,0.38835]
[1727286305780,2.0625,2575.3,2575.1,0.38834]
[1727286305975,0.38827,2575.7,2575.2,0.38833]
[1727286306280,0.38829,2575.6,2575.0,3.59615]
[1727286306575,2.41215,2575.8,2575.2,0.38833]
[1727286306777,2.0239,2575.8,2575.3,0.38832]
[1727286307087,2.0239,2575.8,2575.4,0.3883]
[1727286307283,2.41214,2575.8,2575.2,0.38833]
[1727286307480,2.0239,2575.8,2575.2,2.37353]
[1727286307685,2.41216,2575.8,2575.2,2.37353]
[1727286308183,2.0239,2575.8,2575.2,1.9852]
[1727286308774,2.41215,2575.8,2575.2,2.37353]
[1727286308969,2.0239,2575.8,2575.0,3.2078]
[1727286309182,0.38827,2575.7,2575.1,0.38834]
[1727286309479,0.38827,2575.6,2575.0,3.59616]
[1727286309682,2.43867,2575.6,2575.0,3.59616]
[1727286310083,2.43867,2575.6,2575.1,0.38835]
[1727286310278,2.0504,2575.6,2575.1,0.38835]
[1727286310477,2.43868,2575.6,2575.1,0.38835]
[1727286310672,0.3883,2575.5,2575.0,3.2078]
[1727286311383,0.3883,2575.5,2575.0,3.59616]
[1727286311982,5.2582,2575.6,2575.0,3.2078]
[1727286312185,0.38829,2575.5,2575.0,3.59616]
[1727286312878,5.64648,2575.6,2575.1,0.38834]
[1727286313289,0.38832,2575.4,2575.0,3.2078]
[1727286313487,2.1056,2575.3,2575.0,3.2078]
[1727286315087,2.1056,2575.3,2574.9,2.37357]
[1727286315088,2.49392,2575.3,2574.9,2.37357]
[1727286315287,0.38836,2575.1,2574.7,3.2078]
[1727286315479,0.38836,2575.1,2574.5,3.8945]
[1727286315480,2.39724,2575.2,2574.8,0.38838]
[1727286315890,0.38834,2575.2,2574.8,0.38838]
[1727286316191,0.38839,2574.9,2574.5,2.30143]
[1727286316490,0.38839,2574.8,2574.5,2.30143]
[1727286316688,0.38837,2575.0,2574.7,0.3884]
[1727286316893,0.38837,2575.0,2574.8,0.38839]
[1727286316894,0.38836,2575.0,2574.8,0.38839]
[1727286318183,0.38836,2575.0,2574.7,3.2078]
[1727286318184,0.38835,2575.2,2574.9,0.38837]
[1727286318381,2.1056,2575.3,2574.9,0.38837]
[1727286318578,2.1056,2575.3,2574.7,3.2078]
[1727286318792,1.911,2575.4,2574.7,6.9378]
[1727286318982,1.911,2575.4,2575.3,0.38832]
[1727286319187,7.59833,2575.9,2575.7,0.38826]
[1727286319388,0.09,2576.4,2575.3,3.73]
[1727286319389,1.911,2576.1,2575.6,3.2078]
[1727286319693,0.38826,2575.8,2575.5,0.38829]
[1727286320196,0.38826,2575.7,2575.4,0.3883]
[1727286320385,0.38825,2575.8,2575.3,3.2078]
[1727286320585,0.38825,2575.8,2575.4,0.38829]
[1727286320980,6.08933,2576.1,2575.3,3.2078]
[1727286321182,1.9819,2575.7,2575.2,3.2078]
[1727286321390,1.9819,2575.7,2575.4,0.38829]
[1727286321695,5.1188,2576.1,2575.2,4.17861]
[1727286321885,0.38825,2575.8,2575.5,3.59608]
[1727286322086,0.38823,2575.9,2575.6,0.38827]
[1727286322288,0.38822,2576.0,2575.7,0.38826]
[1727286322791,2.29921,2576.1,2575.7,0.38825]
[1727286322990,2.29921,2576.1,2575.8,0.38824]
[1727286323195,0.38821,2576.0,2575.8,0.38824]
[1727286323493,2.88152,2576.1,2575.5,3.59608]
[1727286323685,0.38823,2575.9,2575.6,0.38827]
[1727286324295,0.38824,2575.8,2575.6,0.38827]
[1727286324496,1.911,2576.1,2575.5,3.2078]
[1727286324993,3.2078,2576.4,2576.1,0.38819]
[1727286325187,3.59596,2576.4,2576.1,0.38819]
[1727286325382,3.59596,2576.4,2575.8,3.2078]
[1727286325383,0.38817,2576.3,2576.2,2.0429]
[1727286326312,0.38817,2576.3,2575.8,3.2078]
[1727286326313,3.8816,2576.3,2575.8,3.2078]
[1727286326593,0.38823,2575.9,2575.8,3.2078]
[1727286326982,0.38823,2576.0,2575.8,3.2078]
[1727286327687,2.1079,2576.1,2575.8,3.2078]
[1727286327688,2.49611,2576.1,2575.8,3.2078]
[1727286328090,0.38821,2576.0,2575.8,3.2078]
[1727286328796,2.1079,2576.1,2575.8,3.2078]
[1727286328989,0.38821,2576.0,2575.8,3.2078]
[1727286329599,2.1079,2576.1,2575.8,3.2078]
[1727286329896,0.38821,2576.0,2575.8,3.2078]
[1727286330202,2.1079,2576.1,2575.8,3.2078]
[1727286330391,0.38822,2576.0,2575.8,3.2078]
[1727286330591,0.38823,2575.9,2575.8,3.2078]
[1727286331192,0.38823,2576.0,2575.8,3.59604]
[1727286331494,3.79322765,2575.9,2574.7,1.51890201]
[1727286331695,0.38838,2574.9,2574.8,5.14030134]
[1727286331890,0.38838,2574.9,2574.8,1.01260134]
[1727286332897,3.59618,2574.9,2574.8,1.01260134]
[1727286333810,3.2078,2575.2,2575.1,0.38834]
[1727286334307,3.2078,2575.2,2575.1,3.8832]
[1727286334604,3.2078,2575.2,2575.0,2.47566]
[1727286334802,3.59614,2575.2,2575.0,2.47566]
[1727286334990,0.38833,2575.3,2575.0,2.47566]
[1727286335190,0.38834,2575.2,2575.0,2.47566]
[1727286336104,0.38832,2575.3,2575.0,2.47565]
[1727286336299,0.38834,2575.2,2575.0,2.47565]
[1727286336499,0.38834,2575.2,2574.9,2.0404]
[1727286336500,0.38836,2575.0,2574.9,2.0404]
[1727286336696,3.2078,2575.2,2574.7,2.5179]
[1727286336697,0.38839,2574.9,2574.7,2.5179]
[1727286336901,0.38844,2574.6,2574.4,2.38845]
[1727286337097,0.38844,2574.5,2574.4,2.0]
[1727286337298,0.38844,2574.5,2574.4,0.38845]
[1727286337497,0.38846,2574.4,2574.3,0.38846]
[1727286339604,3.2078,2574.6,2574.2,2.1295]
[1727286339794,0.38846,2574.4,2574.3,0.38846]
[1727286340498,3.2078,2574.6,2574.2,2.1295]
[1727286340499,0.38847,2574.3,2574.2,2.51798]
[1727286340699,4.1789,2574.6,2573.8,4.04694755]
[1727286340700,3.03593,2574.5,2573.8,4.04694755]
[1727286340909,3.2078,2574.2,2573.8,8.50478755]
[1727286341107,0.38852,2574.0,2573.9,0.38853]
[1727286341315,0.38852,2574.0,2573.8,8.50478755]
[1727286341512,0.38852,2574.0,2573.8,12.38957755]
[1727286341701,3.2078,2574.2,2573.9,0.38852]
[1727286341702,0.38851,2574.1,2573.9,0.38852]
[1727286341904,3.59629,2574.2,2574.0,0.38851]
[1727286342410,3.59629,2574.2,2573.8,4.45784]
[1727286342411,3.2078,2574.2,2573.8,4.45784]
[1727286342606,0.38851,2574.1,2573.9,0.38853]
[1727286343007,3.2078,2574.2,2573.6,3.2078]
[1727286343211,3.59634,2573.9,2573.7,0.38855]
[1727286343513,0.38855,2573.8,2573.6,0.38857]
[1727286343713,3.59634,2573.9,2573.7,0.38856]
[1727286344216,0.38855,2573.8,2573.7,0.38856]
[1727286344512,0.38855,2573.8,2573.6,0.38857]
[1727286344711,0.38855,2573.8,2573.7,0.38856]
[1727286344914,0.38855,2573.8,2573.6,0.38857]
[1727286345215,0.38856,2573.8,2573.6,0.38857]
[1727286345812,5.2168,2573.9,2573.5,0.38858]
[1727286346117,0.38859,2573.6,2573.4,0.3886]
[1727286346510,3.2078,2573.6,2573.3,4.0693]
[1727286346805,2.0848,2573.8,2573.3,4.0693]
[1727286347009,0.38859,2573.5,2573.3,4.0693]
[1727286347212,0.38859,2573.5,2573.3,4.45791]
[1727286347514,0.38862,2573.4,2573.2,0.38863]
[1727286347708,0.3886,2573.5,2573.3,0.38862]
[1727286347909,3.2078,2573.6,2572.9,5.5612]
[1727286348110,0.3886,2573.5,2573.3,0.38861]
[1727286348414,3.59638,2573.6,2573.4,0.38859]
[1727286348715,3.2078,2573.6,2573.2,0.38862]
[1727286348916,0.38863,2573.3,2573.1,0.38864]
[1727286349315,0.38861,2573.4,2572.9,4.1342]
[1727286349509,0.38859,2573.5,2573.3,0.38861]
[1727286349818,0.3886,2573.5,2573.3,0.38861]
[1727286350113,3.2078,2573.6,2572.9,4.1342]
[1727286350316,0.38862,2573.4,2572.9,4.1342]
[1727286350720,3.2078,2573.6,2573.0,0.38867]
[1727286351016,2.0848,2573.8,2573.7,0.38856]
[1727286351208,3.2078,2574.2,2573.3,3.2078]
[1727286351405,0.38853,2574.0,2573.4,6.43422]
[1727286351714,3.2078,2573.8,2573.5,2.0521]
[1727286351913,1.9978,2573.7,2573.5,0.38858]
[1727286352310,1.9978,2573.7,2573.4,0.3886]
[1727286352616,1.9978,2573.7,2573.4,0.38861]
[1727286352617,3.2078,2573.5,2573.4,0.38861]
[1727286352808,3.2078,2573.5,2573.1,4.1133]
[1727286352809,0.38861,2573.5,2573.3,0.38861]
[1727286353116,0.38861,2573.4,2573.3,0.38861]
[1727286353321,0.3886,2573.5,2573.1,4.1133]
[1727286353513,0.38862,2573.3,2573.2,0.38863]
[1727286354215,2.47771,2573.4,2573.3,0.38862]
[1727286354423,2.0891,2573.4,2573.3,0.38862]
[1727286354620,3.2078,2573.6,2573.1,4.1133]
[1727286354621,3.59638,2573.6,2573.5,0.38859]
[1727286354819,3.2078,2573.6,2573.1,4.1133]
[1727286355019,3.2078,2573.6,2573.5,0.38859]
[1727286356815,0.38857,2573.7,2573.6,0.38858]
[1727286357027,0.38856,2573.7,2573.3,0.97156]
[1727286357219,2.47765,2573.8,2573.7,0.38856]
[1727286357411,2.0891,2573.8,2573.7,0.38856]
[1727286357612,5.2976,2573.9,2573.8,0.38855]
[1727286357613,3.2078,2573.9,2573.8,0.38855]
[1727286359721,3.2078,2573.9,2573.7,0.38855]
[1727286360022,3.2078,2573.9,2573.3,0.97155]
[1727286360219,3.2078,2573.9,2573.6,0.38856]
[1727286360428,0.38856,2573.7,2573.6,0.38856]
[1727286360726,0.38856,2573.7,2573.6,0.38858]
[1727286360727,0.38857,2573.7,2573.6,0.38858]
[1727286361118,3.2078,2573.9,2573.4,2.1578]
[1727286361427,0.38858,2573.6,2573.5,0.38858]
[1727286361821,0.38856,2573.7,2573.6,0.38857]
[1727286362125,0.38859,2573.5,2573.4,2.54639]
[1727286362427,0.38858,2573.6,2573.5,0.38858]
[1727286363019,0.38859,2573.5,2573.1,5.00422]
[1727286363319,0.38858,2573.6,2573.5,0.38858]
[1727286364531,3.59634,2573.9,2573.8,0.38855]
[1727286365025,0.38855,2573.8,2573.6,1.9805]
[1727286365225,0.38855,2573.8,2573.6,2.36906]
[1727286365527,3.8856,2573.8,2573.2,3.2078]
[1727286365729,0.38857,2573.7,2573.5,0.38858]
[1727286366027,0.38858,2573.6,2573.4,0.3886]
[1727286366527,0.97152,2573.4,2572.5,4.5968]
[1727286366730,0.97152,2573.4,2572.6,4.0034]
[1727286366731,0.97165,2573.1,2572.6,4.0034]
[1727286366915,0.3887,2572.8,2572.7,0.3887]
[1727286367118,0.38869,2572.9,2572.7,0.3887]
[1727286367321,0.38868,2572.9,2572.7,0.3887]
[1727286367525,2.46788,2572.9,2572.8,0.3887]
[1727286367826,2.0792,2572.9,2572.8,0.3887]
[1727286368031,0.38866,2573.1,2572.9,0.38868]
[1727286368217,7.4613,2573.2,2572.6,4.9752]
[1727286368537,0.97163,2573.1,2572.6,4.0034]
[1727286368827,0.38869,2572.9,2572.8,0.3887]
[1727286369025,0.38869,2572.9,2572.2,3.2078]
[1727286369026,3.2078,2572.9,2572.2,3.2078]
[1727286369421,0.38877,2572.3,2572.2,3.2078]
[1727286369929,0.38877,2572.3,2572.2,3.59659]
[1727286370625,0.38877,2572.3,2572.2,3.2078]
[1727286370818,6.2717,2572.5,2572.3,0.38876]
[1727286371026,4.2535,2572.5,2571.8,0.97213]
[1727286371324,4.2535,2572.5,2571.9,3.2078]
[1727286371325,0.38879,2572.3,2571.9,3.2078]
[1727286371529,2.1258,2572.5,2571.7,4.1654]
[1727286371735,2.1258,2572.5,2572.4,0.38876]
[1727286371924,3.2078,2572.7,2572.6,0.38873]
[1727286372322,4.2022,2572.8,2572.7,0.38871]
[1727286372524,2.1388,2572.8,2572.7,0.38871]
[1727286372927,5.3466,2572.8,2572.6,0.38872]
[1727286373127,5.3466,2572.8,2572.4,2.0948]
[1727286373327,5.7353,2572.8,2572.5,0.38873]
[1727286373527,5.7353,2572.8,2572.6,0.38872]
[1727286373832,5.7353,2572.8,2572.4,2.0948]
[1727286374029,5.3466,2572.8,2572.5,0.38873]
[1727286374232,5.3466,2572.8,2572.2,7.2462]
[1727286374233,0.38884,2571.9,2571.1,1.01418582]
[1727286374529,3.2078,2571.6,2571.4,0.3889]
[1727286374736,3.2078,2571.6,2571.3,4.2036]
[1727286375031,4.0568,2571.8,2571.3,4.2036]
[1727286375234,4.44566,2571.8,2571.6,0.38887]
[1727286375527,4.0568,2571.8,2571.3,4.2036]
[1727286376132,4.44565,2571.8,2571.3,4.2036]
[1727286376335,4.0568,2571.8,2571.7,0.38886]
[1727286376526,0.38883,2572.0,2571.7,0.38886]
[1727286376722,3.2078,2571.9,2571.5,0.38889]
[1727286376929,3.59664,2571.9,2571.6,0.38887]
[1727286377231,3.59664,2571.9,2571.3,4.2036]
[1727286377232,3.2078,2571.9,2571.3,4.2036]
[1727286377627,3.2078,2571.9,2571.5,0.38888]
[1727286377848,3.2078,2571.9,2571.3,4.2036]
[1727286377849,3.59664,2571.9,2571.4,0.38889]
[1727286378026,3.2078,2571.9,2571.3,4.2036]
[1727286378439,3.2078,2571.9,2571.4,3.2078]
[1727286378742,3.2078,2571.9,2571.7,0.38886]
[1727286378933,3.2078,2571.9,2571.4,3.2078]
[1727286379627,7.2646,2572.2,2572.0,0.38881]
[1727286380429,7.2646,2572.2,2571.9,0.38882]
[1727286380734,7.2646,2572.2,2571.7,0.38885]
[1727286380935,3.59663,2571.9,2571.3,4.2036]
[1727286381235,3.59663,2571.9,2571.4,0.38891]
[1727286381431,3.59663,2571.9,2571.5,0.38889]
[1727286381935,3.2078,2571.9,2571.7,0.38885]
[1727286382135,0.38881,2572.1,2571.6,0.38887]
[1727286382328,3.2078,2571.9,2571.6,0.38887]
[1727286382638,3.2078,2571.9,2571.3,4.2036]
[1727286382832,3.2078,2571.9,2571.6,0.38887]
[1727286383245,3.2078,2571.9,2571.7,0.38886]
[1727286383731,3.2078,2571.9,2571.8,0.38885]
[1727286384437,7.2646,2572.2,2572.0,0.38881]
[1727286384935,7.2646,2572.2,2571.9,2.0935]
[1727286384936,3.2078,2572.2,2572.1,0.3888]
[1727286385333,3.2078,2572.2,2572.1,4.2768]
[1727286387642,3.5966,2572.2,2572.0,2.2115]
[1727286387833,3.2078,2572.2,2572.0,2.60031]
[1727286388039,3.2078,2572.2,2571.9,2.0935]
[1727286388040,3.5966,2572.2,2571.9,2.0935]
[1727286388232,3.5966,2572.2,2572.0,0.38881]
[1727286388233,3.2078,2572.2,2572.0,0.38881]
[1727286388539,3.2078,2572.2,2572.1,0.3888]
[1727286390456,3.2078,2572.2,2571.6,0.97217]
[1727286390457,0.38885,2571.8,2571.6,0.38887]
[1727286390737,3.2078,2571.7,2571.6,0.38887]
[1727286390942,3.2078,2571.7,2571.3,4.421]
[1727286391738,3.2078,2571.7,2571.5,0.38889]
[1727286391739,3.59667,2571.7,2571.5,0.38889]
[1727286392038,3.2078,2572.0,2571.8,0.38884]
[1727286392234,3.2078,2572.0,2571.9,0.38883]
[1727286393140,3.2078,2572.0,2571.9,4.27683]
[1727286393740,3.2078,2572.0,2571.9,4.60403]
[1727286393947,3.2078,2572.0,2571.6,0.38887]
[1727286394243,4.3363,2571.9,2571.7,0.38886]
[1727286394744,4.72514,2571.9,2571.7,0.38886]
[1727286395036,4.72514,2571.9,2571.6,0.38887]
[1727286395243,6.93334,2571.9,2571.7,0.38886]
[1727286395635,6.5445,2571.9,2571.7,0.38886]
[1727286395840,4.3363,2571.9,2571.8,0.38885]
[1727286396342,4.3363,2571.9,2571.3,4.2152]
[1727286396343,17.9543,2571.9,2571.3,4.2152]
[1727286396536,3.59669,2571.6,2571.4,0.38891]
[1727286396738,3.59669,2571.6,2571.3,4.2152]
[1727286396739,3.2078,2571.6,2571.5,0.38889]
[1727286397141,3.2078,2571.6,2571.4,0.3889]
[1727286397335,3.2078,2571.6,2571.5,0.38889]
[1727286399043,4.3363,2571.9,2571.7,0.38885]
[1727286399044,7.5441,2571.9,2571.7,0.38885]
[1727286399237,7.5441,2571.9,2571.8,0.38885]
[1727286400443,4.3363,2571.9,2571.8,0.38885]
[1727286401240,4.72513,2571.9,2571.8,0.38885]
[1727286401438,4.3363,2571.9,2571.8,0.38885]
[1727286401643,5.3967,2572.2,2572.1,0.3888]
[1727286401834,3.2078,2572.2,2572.1,0.3888]
[1727286402443,3.2078,2572.2,2571.5,3.2078]
[1727286402649,3.2078,2572.2,2571.3,3.08529]
[1727286402650,3.2078,2571.9,2571.4,2.1029]
[1727286402952,3.59664,2571.9,2571.8,0.38885]
[1727286403151,3.2078,2571.9,2571.8,0.38885]
[1727286403351,4.3199,2572.4,2571.4,2.1029]
[1727286403352,3.59659,2572.2,2572.1,0.3888]
[1727286403651,3.2078,2572.2,2572.1,0.3888]
[1727286404149,0.38881,2572.1,2572.0,0.38881]
[1727286404357,3.2078,2572.2,2572.1,0.3888]
[1727286405039,3.2078,2572.2,2571.9,0.38882]
[1727286405243,0.38884,2571.9,2571.7,0.38885]
[1727286405450,4.1798,2572.2,2571.7,0.38885]
[1727286405451,2.39915,2571.8,2571.7,0.38885]
[1727286405641,4.1798,2572.2,2571.4,2.1029]
[1727286405642,3.2078,2572.2,2571.4,2.1029]
[1727286405842,2.0103,2572.1,2571.4,3.07516]
[1727286406045,0.38882,2572.0,2571.9,0.38883]
[1727286406242,0.38882,2572.0,2571.5,4.32031406]
[1727286406243,0.38883,2571.9,2571.7,0.38885]
[1727286406441,3.2078,2571.9,2571.8,0.38885]
[1727286406849,5.3115,2571.9,2571.8,0.38885]
[1727286407040,0.38887,2571.7,2571.5,0.38889]
[1727286407246,3.2078,2571.6,2571.5,0.38889]
[1727286407443,3.59668,2571.6,2571.4,0.3889]
[1727286407657,2.0103,2571.5,2571.4,0.3889]
[1727286409144,5.3115,2571.9,2571.4,3.8888]
[1727286409350,2.44535,2571.8,2571.6,0.38887]
[1727286410051,2.0565,2571.8,2571.7,0.38886]
[1727286410251,2.44535,2571.8,2571.6,0.38887]
[1727286410447,2.44535,2571.8,2571.2,0.97233]
[1727286410448,2.0565,2571.8,2571.2,0.97233]
[1727286410648,2.0565,2571.8,2571.7,0.38886]
[1727286411749,5.3115,2571.9,2571.8,0.38885]
[1727286412154,3.2078,2571.9,2571.8,0.38885]
[1727286412354,6.2478,2571.9,2571.7,0.38885]
[1727286412655,2.57255,2571.8,2571.6,2.56087]
[1727286412853,2.1837,2571.8,2571.6,0.38887]
[1727286413154,2.57255,2571.8,2571.6,0.38887]
[1727286413348,2.57255,2571.8,2571.3,5.7244]
[1727286413349,4.67665,2571.8,2571.7,0.38886]
[1727286413657,4.2878,2571.8,2571.7,0.38886]
[1727286414050,2.1837,2571.8,2571.7,0.38886]
[1727286414251,3.2078,2571.9,2571.8,0.38885]
[1727286414559,0.38882,2572.0,2571.5,0.97221]
[1727286414857,2.53921,2572.1,2572.0,0.38882]
[1727286415253,2.53921,2572.1,2571.6,0.9722]
[1727286415559,0.38882,2572.0,2571.9,0.38882]
[1727286415853,2.53921,2572.1,2572.0,0.38882]
[1727286416156,0.38882,2572.0,2571.9,0.38882]
[1727286416342,2.1504,2572.1,2572.0,0.38882]
[1727286416343,2.53921,2572.1,2572.0,0.38882]
[1727286416551,2.1504,2572.1,2572.0,0.38882]
[1727286416958,5.4332,2572.2,2572.1,0.3888]
[1727286417654,5.82199,2572.2,2572.1,0.3888]
[1727286418052,5.4332,2572.2,2572.1,0.3888]
[1727286418361,5.4332,2572.2,2572.0,0.38881]
[1727286418362,0.3888,2572.1,2572.0,0.38881]
[1727286419558,0.3888,2572.1,2571.4,1.01418582]
[1727286419559,0.97205,2572.0,2571.4,1.01418582]
[1727286419759,3.2078,2571.6,2571.5,0.38889]
[1727286420458,0.38891,2571.5,2571.4,0.3889]
[1727286420659,4.2777,2571.5,2571.4,0.3889]
[1727286420852,3.8888,2571.5,2571.4,0.3889]
[1727286421051,4.2971,2571.7,2571.0,1.98660582]
[1727286421052,1.49196533,2571.7,2571.6,0.38888]
[1727286421357,1.9872957,2571.8,2571.7,0.38886]
[1727286421358,1.49196533,2571.8,2571.7,0.38886]
[1727286421561,1.49196533,2571.9,2571.8,0.38885]
[1727286421759,4.69976533,2572.0,2571.9,0.38883]
[1727286421966,4.69976533,2572.0,2571.9,1.36092]
[1727286421967,3.2078,2572.0,2571.9,1.36092]
[1727286422258,3.2078,2572.0,2571.9,0.38883]
[1727286422459,3.2078,2572.0,2571.9,6.22101]
[1727286422657,3.2078,2572.0,2571.9,13.23519582]
[1727286422855,3.2078,2572.3,2571.9,11.87427582]
[1727286423057,3.2078,2572.3,2572.2,0.38879]
[1727286423556,3.2078,2572.3,2572.2,4.57669]
[1727286423958,3.2078,2572.3,2572.2,4.1879]
[1727286424161,3.2078,2572.3,2571.8,2.79302582]
[1727286424362,3.2078,2572.0,2571.8,1.77884]
[1727286424762,3.59662,2572.0,2571.7,4.57676]
[1727286424953,0.38884,2571.9,2571.7,4.1879]
[1727286425159,3.04,2571.8,2571.5,1.01418582]
[1727286425359,3.04,2571.8,2571.0,2.53546455]
[1727286425360,3.59668,2571.6,2571.3,0.38892]
[1727286425758,0.3889,2571.5,2571.2,0.38893]
[1727286426060,5.75109,2571.6,2571.3,0.38892]
[1727286426257,3.04,2571.5,2571.0,5.20208582]
[1727286426456,3.2078,2571.3,2571.2,0.38893]
[1727286426851,3.2078,2571.3,2571.1,0.38894]
[1727286427057,3.2078,2571.3,2571.0,5.20208582]
[1727286427561,3.2078,2571.3,2571.2,0.38894]
[1727286428157,3.2078,2571.3,2571.2,4.27774]
[1727286428361,2.1544,2571.6,2571.5,0.38889]
[1727286428659,4.69976533,2571.8,2571.6,0.38887]
[1727286428853,3.2078,2571.8,2571.7,0.38886]
[1727286429051,3.2078,2571.8,2571.5,0.38888]
[1727286429253,3.2078,2571.8,2571.7,0.38886]
[1727286429857,1.49196533,2572.0,2571.9,0.38883]
[1727286430159,5.08857533,2572.1,2571.8,4.66534]
[1727286430350,4.69976533,2572.1,2571.8,4.66534]
[1727286430561,5.08857533,2572.1,2571.8,4.66534]
[1727286430859,5.08857533,2572.1,2571.8,4.2765]
[1727286431063,0.38883,2571.9,2571.8,2.1343]
[1727286431262,4.69976533,2572.1,2571.5,0.38888]
[1727286431453,3.2078,2571.8,2571.2,4.22198582]
[1727286431654,3.2078,2571.8,2571.7,0.38886]
[1727286432366,3.2078,2571.8,2571.4,1.01418582]
[1727286432659,3.2078,2571.8,2571.3,3.66347873]
[1727286432660,0.38887,2571.7,2571.3,4.54638582]
[1727286432855,3.2078,2571.8,2571.3,4.54638582]
[1727286433055,3.2078,2571.8,2571.1,2.1343]
[1727286433056,3.2078,2571.5,2571.1,3.14848582]
[1727286433256,3.59674,2571.2,2571.0,1.40314582]
[1727286433456,3.59674,2571.2,2571.0,1.01418582]
[1727286433457,3.2078,2571.2,2571.0,1.01418582]
[1727286433750,3.2078,2571.2,2570.9,3.24898582]
[1727286433956,2.48185,2571.1,2570.9,0.38898]
[1727286434153,0.38897,2571.0,2570.8,0.38899]
[1727286434358,2.56047,2571.0,2570.8,0.38899]
[1727286434567,0.38898,2570.9,2570.7,3.66349582]
[1727286434865,3.59679,2570.9,2570.6,0.38902]
[1727286435165,3.2078,2570.9,2570.8,0.389]
[1727286435371,2.1715,2571.0,2570.9,0.38898]
[1727286435567,2.1715,2571.0,2570.8,0.38899]
[1727286435759,2.1715,2571.0,2570.9,0.38898]
[1727286436255,2.1715,2571.0,2570.8,0.38899]
[1727286436455,0.38902,2570.7,2570.5,0.38904]
[1727286436663,3.2078,2570.6,2570.1,1.01418582]
[1727286436865,3.2078,2570.6,2570.1,2.0638]
[1727286437256,3.2078,2570.6,2570.5,0.38904]
[1727286437663,3.2078,2570.9,2570.4,3.74]
[1727286438069,3.2078,2570.9,2570.8,0.389]
[1727286439271,2.1715,2571.0,2570.5,3.2078]
[1727286439459,2.1715,2571.0,2570.5,4.18041]
[1727286439660,3.2078,2571.2,2571.0,0.38895]
[1727286439871,3.2078,2571.2,2570.6,2.189]
[1727286440164,0.38893,2571.3,2570.7,2.1716]
[1727286440368,2.44122,2571.4,2571.1,0.38895]
[1727286440565,2.0523,2571.4,2571.2,0.38893]
[1727286440761,1.49196533,2571.7,2571.0,3.74]
[1727286440963,5.64895,2571.8,2571.5,0.38888]
[1727286441766,5.2601,2571.8,2571.2,0.97235]
[1727286441980,5.2601,2571.8,2571.3,2.1942]
[1727286442171,5.2601,2571.8,2571.7,0.38886]
[1727286442772,3.2078,2571.8,2571.7,0.38886]
[1727286443473,3.2078,2572.2,2572.1,0.3888]
[1727286448871,3.2078,2572.2,2572.1,4.2768]
[1727286450573,3.2078,2572.2,2571.9,2.1942]
[1727286450778,3.2078,2572.2,2571.8,2.1756]
[1727286450779,2.0678,2572.1,2571.6,1.434]
[1727286451073,3.59664,2571.9,2571.6,1.82287]
[1727286451274,3.2078,2571.9,2571.7,0.38886]
[1727286451676,3.2078,2571.9,2571.8,0.38885]
[1727286451879,2.0678,2572.1,2571.6,1.434]
[1727286452087,4.69976533,2572.2,2572.1,0.3888]
[1727286452088,3.2078,2572.2,2572.1,0.3888]
[1727286452270,3.2078,2572.2,2572.1,4.2768]
[1727286452475,3.2078,2572.2,2572.1,11.7878]
[1727286452876,3.2078,2572.2,2572.1,0.3888]
[1727286456677,3.2078,2572.2,2571.9,3.03]
[1727286456678,3.2078,2572.2,2571.9,3.41882]
[1727286456876,3.2078,2572.2,2571.9,0.38883]
[1727286457077,3.2078,2572.2,2571.7,7.511]
[1727286457078,2.1425,2572.1,2571.8,0.38884]
[1727286457680,2.5313,2572.1,2571.7,4.86986]
[1727286457882,3.2078,2571.9,2571.7,0.38886]
[1727286458281,3.2078,2571.9,2571.6,1.434]
[1727286458282,3.2078,2571.9,2571.8,0.38885]
[1727286459081,3.2078,2571.9,2571.7,0.38886]
[1727286459276,3.2078,2571.9,2571.8,0.38885]
[1727286460082,2.1425,2572.1,2571.7,3.03]
[1727286460282,2.1425,2572.1,2571.8,0.38884]
[1727286460582,2.1425,2572.1,2571.6,1.434]
[1727286460782,0.38882,2572.0,2571.7,0.38886]
[1727286461085,2.1425,2572.1,2571.8,0.38884]
[1727286461491,2.53131,2572.1,2571.8,0.38884]
[1727286461797,2.1425,2572.1,2571.8,0.38884]
[1727286462692,2.5313,2572.1,2571.7,0.38885]
[1727286462898,2.5313,2572.1,2571.6,1.82287]
[1727286463099,0.38882,2572.0,2571.6,1.82287]
[1727286463403,3.59663,2571.9,2571.5,0.38888]
[1727286463605,5.4711,2571.9,2571.6,0.38887]